bitfinex-derivatives/quotes_BNBF0:USTF0_20250115
["timestamp","ask_amount","ask_price","bid_price","bid_amount"]
[1736976948654,1.04409684,710.67,709.6,6.27084892]
[1736976949858,1.04409684,710.65,709.6,6.27084892]
[1736976951756,1.04409684,710.63,709.6,6.27084892]
[1736976952760,1.04409684,710.58,709.6,6.27084892]
[1736976954761,1.04409684,710.59,709.6,6.27084892]
[1736976955766,1.47042254,710.72,709.6,6.27084892]
[1736976955767,1.04409684,710.6,709.6,6.27084892]
[1736976956867,1.04409684,710.59,709.6,6.27084892]
[1736976959168,1.04409684,710.62,709.6,6.27084892]
[1736976959867,1.47042254,710.72,709.6,6.27084892]
[1736976961267,0.2813731,710.8,709.6,6.27084892]
[1736976961669,1.47038629,710.76,709.6,6.27084892]
[1736976962570,0.28139289,710.75,709.6,6.27084892]
[1736976962965,0.28139289,710.75,709.6,5.989]
[1736976968679,1.32548973,710.75,709.6,5.989]
[1736976970677,1.04409684,710.74,709.6,5.989]
[1736976970873,0.28140081,710.73,709.6,5.989]
[1736976973278,0.25864889,710.72,709.6,5.989]
[1736976973479,0.28140081,710.73,709.6,5.989]
[1736976973673,0.25865463,710.72,709.6,5.989]
[1736976973879,1.04409684,710.62,709.6,5.989]
[1736976974979,1.04409684,710.6,709.6,5.989]
[1736976976078,1.04409684,710.58,709.6,5.989]
[1736976976683,1.04409684,710.6,709.6,5.989]
[1736976978484,1.04409684,710.63,709.6,5.989]
[1736976979077,1.32553725,710.63,709.6,5.989]
[1736976979483,1.04409684,710.6,709.6,5.989]
[1736976980378,2.51474204,710.59,709.6,5.989]
[1736976981485,1.4706452,710.59,709.6,5.989]
[1736976982480,1.04409684,710.58,709.6,5.989]
[1736976983689,1.4706452,710.59,709.6,5.989]
[1736976988695,0.28144041,710.63,709.6,5.989]
[1736976988896,0.25863057,710.62,709.6,5.989]
[1736976989698,1.04409684,710.54,709.6,5.989]
[1736976991099,1.04409684,710.58,709.6,5.989]
[1736976992093,1.04409684,710.59,709.6,5.989]
[1736976994697,1.04409684,710.57,709.6,5.989]
[1736976997502,0.28144041,710.63,709.6,5.989]
[1736977006611,1.04409684,710.59,709.6,5.989]
[1736977009612,1.04409684,710.58,709.6,5.989]
[1736977010212,0.28144041,710.63,709.6,5.989]
[1736977011515,1.05355015,710.58,709.6,5.989]
[1736977012107,0.25867328,710.57,709.6,5.989]
[1736977012312,1.05355015,710.58,709.6,5.989]
[1736977012509,1.47065556,710.56,709.6,5.989]
[1736977012913,0.25867618,710.55,709.6,5.989]
[1736977013714,1.05355015,710.51,709.6,5.989]
[1736977014610,0.25868251,710.5,709.6,5.989]
[1736977014814,1.05355015,710.49,709.6,5.989]
[1736977015114,0.25868827,710.48,709.6,5.989]
[1736977015709,1.05355015,710.49,709.6,5.989]
[1736977015909,1.05355015,710.45,709.6,5.989]
[1736977016814,1.05355015,710.47,709.6,5.989]
[1736977017717,1.47065556,710.56,709.6,5.989]
[1736977017718,1.05355015,710.48,709.6,5.989]
[1736977019620,0.25868722,710.47,709.6,5.989]
[1736977020014,1.05355015,710.48,709.6,5.989]
[1736977020414,1.05355015,710.55,709.6,5.989]
[1736977024721,2.52420571,710.56,709.6,5.989]
[1736977025120,0.25869504,710.55,709.6,5.989]
[1736977025315,2.52420571,710.56,709.6,5.989]
[1736977025521,1.05355015,710.54,709.6,5.989]
[1736977026522,0.25870611,710.53,709.6,5.989]
[1736977027123,0.25870611,710.52,709.6,5.989]
[1736977027322,1.05355015,710.55,709.6,5.989]
[1736977027522,1.05355015,710.53,709.6,5.989]
[1736977027722,0.25870655,710.52,709.6,5.989]
[1736977028223,0.25870971,710.51,709.6,5.989]
[1736977028423,1.05355015,710.53,709.6,5.989]
[1736977028624,0.25871018,710.52,709.6,5.989]
[1736977028923,1.05355015,710.49,709.6,5.989]
[1736977029718,1.47079541,710.48,709.6,5.989]
[1736977030025,0.25870871,710.47,709.6,5.989]
[1736977030925,1.05355015,710.39,709.6,5.989]
[1736977031726,1.05355015,710.38,709.6,5.989]
[1736977032317,1.05355015,710.37,709.6,5.989]
[1736977033222,1.05355015,710.36,709.6,5.989]
[1736977035224,1.05355015,710.39,709.6,5.989]
[1736977035826,1.47079541,710.48,709.6,5.989]
[1736977036019,0.25871079,710.47,709.6,5.989]
[1736977036422,1.47079541,710.48,709.6,5.989]
[1736977036621,0.25871367,710.47,709.6,5.989]
[1736977036818,1.05353126,710.33,709.6,5.989]
[1736977037720,1.05353126,710.31,709.6,5.989]
[1736977038827,1.05353126,710.3,709.6,5.989]
[1736977039726,1.47079541,710.48,709.6,5.989]
[1736977039927,1.05353126,710.51,709.6,5.989]
[1736977040327,1.47094565,710.47,709.6,5.989]
[1736977040628,1.05353126,710.42,709.6,5.989]
[1736977040826,0.28152756,710.41,709.6,5.989]
[1736977049331,0.2587178,710.4,709.6,5.989]
[1736977049832,0.28152756,710.41,709.6,5.989]
[1736977076447,0.25871713,710.4,709.6,5.989]
[1736977077851,0.2587314,710.39,709.6,5.989]
[1736977078050,0.2587314,710.38,709.6,5.989]
[1736977078247,0.2587314,710.37,709.6,5.989]
[1736977078452,0.2587314,710.36,709.6,5.989]
[1736977078652,0.2587314,710.35,709.6,5.989]
[1736977078951,0.2587314,710.34,709.6,5.989]
[1736977079152,0.2587314,710.33,709.6,5.989]
[1736977079352,0.28152756,710.41,709.6,5.989]
[1736977079353,1.05353126,710.38,709.6,5.989]
[1736977079553,0.25872633,710.37,709.6,5.989]
[1736977080349,1.31225759,710.37,709.6,5.989]
[1736977080655,0.25872541,710.36,709.6,5.989]
[1736977081056,1.05353126,710.35,709.6,5.989]
[1736977081253,0.25872541,710.34,709.6,5.989]
[1736977081949,1.05353126,710.35,709.6,5.989]
[1736977082153,0.28152756,710.41,709.6,5.989]
[1736977082154,1.31226014,710.34,709.6,5.989]
[1736977082354,1.05353126,710.34,709.6,5.989]
[1736977083452,1.05353126,710.36,709.6,5.989]
[1736977084361,1.05353126,710.35,709.6,5.989]
[1736977085459,1.05353126,710.37,709.6,5.989]
[1736977085760,0.2587341,710.36,709.6,5.989]
[1736977085956,1.05353126,710.37,709.6,5.989]
[1736977086358,1.05353126,710.38,709.6,5.989]
[1736977086555,0.25873009,710.37,709.6,5.989]
[1736977088358,1.05353126,710.4,709.6,5.989]
[1736977088654,0.25873058,710.39,709.6,5.989]
[1736977088860,1.05353126,710.4,709.6,5.989]
[1736977089056,0.25873413,710.39,709.6,5.989]
[1736977089657,1.33505882,710.41,709.6,5.989]
[1736977089859,0.25872264,710.4,709.6,5.989]
[1736977090965,0.25872367,710.39,709.6,5.989]
[1736977091260,0.28152756,710.41,709.6,5.989]
[1736977091461,0.25872263,710.4,709.6,5.989]
[1736977091964,0.28152756,710.41,709.6,5.989]
[1736977092164,0.25871798,710.4,709.6,5.989]
[1736977092861,0.28152756,710.41,709.6,5.989]
[1736977093261,0.25872107,710.4,709.6,5.989]
[1736977093662,0.28152756,710.41,709.6,5.989]
[1736977093863,0.25872704,710.4,709.6,5.989]
[1736977094066,0.28152756,710.41,709.6,5.989]
[1736977101269,0.25874386,710.4,709.6,5.989]
[1736977101670,1.05353126,710.38,709.6,5.989]
[1736977103372,0.25874286,710.37,709.6,5.989]
[1736977103874,1.05353126,710.38,709.6,5.989]
[1736977104469,1.31227065,710.37,709.6,5.989]
[1736977104669,0.25873711,710.36,709.6,5.989]
[1736977105374,1.05353126,710.33,709.6,5.989]
[1736977105973,0.25874326,710.32,709.6,5.989]
[1736977106472,1.05353126,710.31,709.6,5.989]
[1736977106671,0.25874326,710.3,709.6,5.989]
[1736977107270,0.25875687,710.29,709.6,5.989]
[1736977107573,1.05353126,710.27,709.6,5.989]
[1736977108673,1.05353126,710.28,709.6,5.989]
[1736977109672,1.05353126,710.25,709.6,5.989]
[1736977110569,1.05353126,710.27,709.6,5.989]
[1736977111375,1.05353126,710.25,709.6,5.989]
[1736977112173,1.05353126,710.23,709.6,5.989]
[1736977113171,1.05353126,710.25,709.6,5.989]
[1736977114372,1.05353126,710.26,709.6,5.989]
[1736977115073,1.05353126,710.29,709.6,5.989]
[1736977116072,1.05353126,710.3,709.6,5.989]
[1736977117677,1.05353126,710.29,709.6,5.989]
[1736977118576,1.05353126,710.26,709.6,5.989]
[1736977119471,1.05353126,710.25,709.6,5.989]
[1736977120375,1.05353126,710.27,709.6,5.989]
[1736977123881,1.05353126,710.26,709.6,5.989]
[1736977124682,1.05353126,710.29,709.6,5.989]
[1736977125684,1.05353126,710.28,709.6,5.989]
[1736977126584,1.05353126,710.27,709.6,5.989]
[1736977128384,1.05353126,710.26,709.6,5.989]
[1736977132185,1.05353126,710.24,709.6,5.989]
[1736977132990,1.05353126,710.23,709.6,5.989]
[1736977134994,1.05353126,710.21,709.6,5.989]
[1736977135795,1.75256832,710.34,709.6,5.989]
[1736977135796,1.05353126,710.2,709.6,5.989]
[1736977136996,1.05353126,710.18,709.6,5.989]
[1736977137694,1.05353126,710.19,709.6,5.989]
[1736977138798,1.05353126,710.17,709.6,5.989]
[1736977139995,1.05353126,710.14,709.6,5.989]
[1736977141196,1.05353126,710.15,709.6,5.989]
[1736977142400,1.47101301,710.34,709.6,5.989]
[1736977142601,1.05353126,710.51,709.6,5.989]
[1736977143603,1.05353126,710.55,709.6,5.989]
[1736977144504,1.05353126,710.56,709.6,5.989]
[1736977145600,1.05353126,710.57,709.6,5.989]
[1736977146604,1.05353126,711.12,709.6,5.989]
[1736977146605,1.05353126,710.58,709.6,5.989]
[1736977148406,1.05353126,710.59,709.6,5.989]
[1736977149404,1.47081613,710.58,709.6,5.989]
[1736977151710,0.25872945,710.57,709.6,5.989]
[1736977152910,1.05353126,710.44,709.6,5.989]
[1736977153908,1.05353126,710.48,709.6,5.989]
[1736977156708,1.05353126,710.47,709.6,5.989]
[1736977158013,1.05353126,710.45,709.6,5.989]
[1736977158909,1.05353126,710.44,709.6,5.989]
[1736977159708,1.47089384,710.43,709.6,5.989]
[1736977163614,1.05353126,710.42,709.6,5.989]
[1736977165318,0.25872875,710.41,709.6,5.989]
[1736977165715,2.5244251,710.43,709.6,5.989]
[1736977165920,0.25872893,710.42,709.6,5.989]
[1736977166417,1.05353126,710.32,709.6,5.989]
[1736977167122,1.05353126,710.33,709.6,5.989]
[1736977169025,1.05353126,710.35,709.6,5.989]
[1736977169925,1.05353126,710.32,709.6,5.989]
[1736977170819,1.05353126,710.33,709.6,5.989]
[1736977172819,1.05353126,710.29,709.6,5.989]
[1736977173824,1.05353126,710.31,709.6,5.989]
[1736977174822,1.05353126,710.29,709.6,5.989]
[1736977175825,1.05353126,710.27,709.6,5.989]
[1736977177124,1.05353126,710.3,709.6,5.989]
[1736977177922,1.05353126,710.33,709.6,5.989]
[1736977178923,2.52452355,710.35,709.6,5.989]
[1736977183025,1.47099229,710.35,709.6,5.989]
[1736977186727,1.05353126,710.34,709.6,5.989]
[1736977187828,1.05353126,710.31,709.6,5.989]
[1736977188928,1.05353126,710.25,709.6,5.989]
[1736977189729,1.05353126,710.27,709.6,5.989]
[1736977191324,1.05353126,710.26,709.6,5.989]
[1736977193023,1.05353126,710.24,709.6,5.989]
[1736977194729,1.05353126,710.25,709.6,5.989]
[1736977195729,1.05353126,710.26,709.6,5.989]
[1736977196931,1.05353126,710.27,709.6,5.989]
[1736977197731,1.05353126,710.24,709.6,5.989]
[1736977198531,1.05353126,710.25,709.6,5.989]
[1736977199431,1.05353126,710.23,709.6,5.989]
[1736977201236,1.05353126,710.3,709.6,5.989]
[1736977202337,1.05353126,710.28,709.6,5.989]
[1736977203538,1.05353126,710.27,709.6,5.989]
[1736977204435,1.05353126,710.3,709.6,5.989]
[1736977205738,1.05353126,710.32,709.6,5.989]
[1736977210844,1.05353126,710.29,709.6,5.989]
[1736977211745,1.05353126,710.28,709.6,5.989]
[1736977212543,1.47099229,710.35,709.6,5.989]
[1736977224646,0.28155531,710.34,709.6,5.989]
[1736977234656,0.25878731,710.33,709.6,5.989]
[1736977235454,0.28155531,710.34,709.6,5.989]
[1736977235758,1.05353126,710.28,709.6,5.989]
[1736977236656,2.52463237,710.28,709.6,5.989]
[1736977237656,0.25878829,710.27,709.6,5.989]
[1736977238361,1.05353126,710.18,709.6,5.989]
[1736977239352,1.05353126,710.17,709.6,5.989]
[1736977240959,1.05353126,710.16,709.6,5.989]
[1736977241959,1.05353126,710.19,709.6,5.989]
[1736977242455,0.25878278,710.18,709.6,5.989]
[1736977242654,1.05353126,710.19,709.6,5.989]
[1736977244755,1.05353126,710.23,709.6,5.989]
[1736977246967,1.05353126,710.28,709.6,5.989]
[1736977249269,1.05353126,710.27,709.6,5.989]
[1736977251170,0.28155531,710.34,709.6,5.989]
[1736977252165,1.33508657,710.34,709.6,5.989]
[1736977252969,1.05353126,710.33,709.6,5.989]
[1736977254065,1.05353126,710.31,709.6,5.989]
[1736977254871,0.28155531,710.34,709.6,5.989]
[1736977254872,1.05353126,710.29,709.6,5.989]
[1736977258175,1.05353126,710.32,709.6,5.989]
[1736977260076,1.05353126,710.33,709.6,5.989]
[1736977260277,0.25876818,710.32,709.6,5.989]
[1736977261175,1.05353126,710.15,709.6,5.989]
[1736977262071,0.28155531,710.34,709.6,5.989]
[1736977262072,1.05353126,710.19,709.6,5.989]
[1736977262881,1.05353126,710.21,709.6,5.989]
[1736977263878,1.05353126,710.2,709.6,5.989]
[1736977264979,1.05353126,710.21,709.6,5.989]
[1736977265877,1.33508657,710.34,709.6,5.989]
[1736977267184,0.28155531,710.34,709.6,5.989]
[1736977269182,1.05353126,710.33,709.6,5.989]
[1736977269980,1.33508657,710.34,709.6,5.989]
[1736977270783,1.05353126,710.33,709.6,5.989]
[1736977271686,1.05353126,710.32,709.6,5.989]
[1736977272686,1.05353126,710.31,709.6,5.989]
[1736977273385,0.28155531,710.34,709.6,5.989]
[1736977273386,1.05353126,710.29,709.6,5.989]
[1736977275283,1.05353126,710.23,709.6,5.989]
[1736977276090,1.05353126,710.22,709.6,5.989]
[1736977277487,1.05353126,710.18,709.6,5.989]
[1736977279386,1.05353126,710.2,709.6,5.989]
[1736977280587,1.05353126,710.18,709.6,5.989]
[1736977283294,0.28155531,710.34,709.6,5.989]
[1736977283295,1.05353126,710.19,709.6,5.989]
[1736977285095,1.05353126,710.2,709.6,5.989]
[1736977286091,1.05353126,710.19,709.6,5.989]
[1736977289097,1.05353126,710.18,709.6,5.989]
[1736977290093,1.05353126,710.17,709.6,5.989]
[1736977293701,1.05353126,710.18,709.6,5.989]
[1736977294799,1.05353126,710.16,709.6,5.989]
[1736977297699,1.33508657,710.34,709.6,5.989]
[1736977297700,1.05353126,710.17,709.6,5.989]
[1736977298497,1.05353126,710.21,709.6,5.989]
[1736977299700,1.05353126,710.2,709.6,5.989]
[1736977302201,1.05353126,710.17,709.6,5.989]
[1736977304504,0.25881627,710.16,709.6,5.989]
[1736977305101,1.05353126,710.11,709.6,5.989]
[1736977306102,1.05353126,710.07,709.6,5.989]
[1736977307004,1.05353126,710.11,709.6,5.989]
[1736977308103,1.05353126,710.12,709.6,5.989]
[1736977308303,0.25884708,710.11,709.6,5.989]
[1736977309005,1.05353126,710.14,709.6,5.989]
[1736977309304,0.25883639,710.13,709.6,5.989]
[1736977309505,1.05353126,710.14,709.6,5.989]
[1736977309903,1.05353126,710.16,709.6,5.989]
[1736977310300,0.25883104,710.15,709.6,5.989]
[1736977311106,0.25883057,710.14,709.6,5.989]
[1736977311300,1.05353126,710.22,709.6,5.989]
[1736977311507,0.2588309,710.21,709.6,5.989]
[1736977311907,0.25883113,710.2,709.6,5.989]
[1736977312108,0.25883113,710.19,709.6,5.989]
[1736977312406,0.25883113,710.18,709.6,5.989]
[1736977312608,0.25883113,710.17,709.6,5.989]
[1736977312811,0.25883113,710.16,709.6,5.989]
[1736977313107,0.25883113,710.15,709.6,5.989]
[1736977313408,1.05353126,710.24,709.6,5.989]
[1736977313601,1.47125659,710.19,709.6,5.989]
[1736977313806,0.25883149,710.18,709.6,5.989]
[1736977319507,0.25883114,710.17,709.6,5.989]
[1736977319714,0.25883114,710.16,709.6,5.989]
[1736977319912,0.25883114,710.15,709.6,5.989]
[1736977320111,0.25883114,710.14,709.6,5.989]
[1736977320310,0.25883114,710.13,709.6,5.989]
[1736977320513,0.25883114,710.12,709.6,5.989]
[1736977320714,0.25883114,710.11,709.6,5.989]
[1736977320915,0.25883114,710.1,709.6,5.989]
[1736977321110,0.25883114,710.18,709.6,5.989]
[1736977321315,0.25883114,710.17,709.6,5.989]
[1736977321612,0.25883114,710.16,709.6,5.989]
[1736977321811,0.25883114,710.15,709.6,5.989]
[1736977322013,0.25883114,710.14,709.6,5.989]
[1736977322213,0.25883114,710.13,709.6,5.989]
[1736977322412,0.25883114,710.12,709.6,5.989]
[1736977322613,0.25883114,710.11,709.6,5.989]
[1736977322816,1.47125659,710.19,709.6,5.989]
[1736977323019,0.25882564,710.18,709.6,5.989]
[1736977324313,0.25882356,710.17,709.6,5.989]
[1736977324515,0.25882356,710.16,709.6,5.989]
[1736977324716,0.25882356,710.15,709.6,5.989]
[1736977324915,1.47125659,710.19,709.6,5.989]
[1736977325114,0.25882252,710.18,709.6,5.989]
[1736977329426,1.05353126,710.15,709.6,5.989]
[1736977329828,0.25883401,710.14,709.6,5.989]
[1736977330827,0.25883401,710.13,709.6,5.989]
[1736977331029,1.47125659,710.19,709.6,5.989]
[1736977331333,0.25883552,710.18,709.6,5.989]
[1736977332632,0.2588284,710.17,709.6,5.989]
[1736977332833,0.2588284,710.16,709.6,5.989]
[1736977333132,0.2588284,710.15,709.6,5.989]
[1736977333325,0.2588284,710.14,709.6,5.989]
[1736977333524,1.05353126,710.18,709.6,5.989]
[1736977333729,0.25882583,710.17,709.6,5.989]
[1736977334328,1.05353126,710.15,709.6,5.989]
[1736977334634,0.25882583,710.14,709.6,5.989]
[1736977335132,1.05353126,710.13,709.6,5.989]
[1736977336030,1.05353126,710.1,709.6,5.989]
[1736977337135,1.05353126,710.07,709.6,5.989]
[1736977337933,1.05353126,710.08,709.6,5.989]
[1736977338634,1.05353126,710.07,709.6,5.989]
[1736977339829,1.05353126,710.06,709.6,5.989]
[1736977341035,1.05353126,710.03,709.6,5.989]
[1736977342834,1.05353126,710.02,709.6,5.989]
[1736977343840,1.05353126,709.99,709.6,5.989]
[1736977345043,1.05353126,709.98,709.6,5.989]
[1736977345938,1.05353126,709.99,709.6,5.989]
[1736977346738,1.05353126,710.0,709.6,5.989]
[1736977347746,1.05353126,709.94,709.6,5.989]
[1736977349447,1.05353126,709.95,709.6,5.989]
[1736977350544,1.05353126,709.92,709.6,5.989]
[1736977351552,1.05353126,709.91,709.6,5.989]
[1736977355652,1.05353126,709.92,709.6,5.989]
[1736977356548,1.05353126,709.95,709.6,5.989]
[1736977357546,1.05353126,709.97,709.6,5.989]
[1736977359651,1.05353126,709.95,709.6,5.989]
[1736977360549,1.05353126,709.94,709.6,5.989]
[1736977361654,1.05353126,709.92,709.6,5.989]
[1736977362255,1.05353126,709.94,709.6,5.989]
[1736977363553,1.05353126,709.93,709.6,5.989]
[1736977365552,1.05353126,709.93,709.6,4.57]
[1736977366056,1.05353126,709.95,709.6,4.57]
[1736977367954,1.05353126,709.96,709.6,4.57]
[1736977368155,1.05353126,709.96,709.6,4.21115777]
[1736977368854,1.05353126,709.96,709.6,5.53715777]
[1736977370256,1.05353126,709.98,709.6,5.53715777]
[1736977372561,1.05353126,709.99,709.6,5.53715777]
[1736977373759,1.05353126,710.0,709.6,5.53715777]
[1736977374660,1.47153655,710.07,709.6,5.53715777]
[1736977374661,1.05353126,709.94,709.6,5.53715777]
[1736977376256,1.47153655,710.07,709.6,5.53715777]
[1736977376257,1.05353126,709.93,709.6,5.53715777]
[1736977377363,1.05353126,709.96,709.6,5.53715777]
[1736977378464,0.82117225,710.22,709.6,5.53715777]
[1736977378465,1.05353126,709.98,709.6,5.53715777]
[1736977382964,1.47139137,710.19,709.6,5.53715777]
[1736977382965,1.05353126,709.99,709.6,5.53715777]
[1736977386468,1.05353126,710.01,709.6,5.53715777]
[1736977387168,1.05353126,709.99,709.6,5.53715777]
[1736977388763,1.05353126,710.0,709.6,5.53715777]
[1736977389662,1.05353126,709.99,709.6,5.53715777]
[1736977390568,1.05353126,710.0,709.6,5.53715777]
[1736977391671,1.05353126,710.01,709.6,5.53715777]
[1736977392669,1.05353126,710.02,709.6,5.53715777]
[1736977394969,1.47139137,710.19,709.6,5.53715777]
[1736977394970,1.05353126,710.03,709.6,5.53715777]
[1736977396071,1.05353126,710.05,709.6,5.53715777]
[1736977397970,1.05353126,710.04,709.6,5.53715777]
[1736977401467,1.05353126,710.07,709.6,5.53715777]
[1736977403470,1.05353126,710.06,709.6,5.53715777]
[1736977404573,1.05353126,710.1,709.6,5.53715777]
[1736977405673,1.05353126,710.17,709.6,5.53715777]
[1736977406471,1.05353126,710.19,709.6,5.53715777]
[1736977407175,1.05353126,710.17,709.6,5.53715777]
[1736977408979,1.05353126,710.22,709.6,5.53715777]
[1736977410377,2.15095966,710.97,709.6,5.53715777]
[1736977410378,1.05353126,710.25,709.6,5.53715777]
[1736977411379,1.05353126,710.22,709.6,5.53715777]
[1736977414286,1.05353126,710.23,709.6,5.53715777]
[1736977416276,1.26423751,710.82,709.6,5.53715777]
[1736977416277,1.05353126,710.21,709.6,5.53715777]
[1736977417080,1.05353126,710.2,709.6,5.53715777]
[1736977417880,0.25880347,710.19,709.6,5.53715777]
[1736977418477,1.05353126,710.21,709.6,5.53715777]
[1736977418678,0.2588045,710.2,709.6,5.53715777]
[1736977419583,1.05353126,710.13,709.6,5.53715777]
[1736977422585,1.05353126,710.14,709.6,5.53715777]
[1736977423385,1.05353126,710.12,709.6,5.53715777]
[1736977424182,1.05353126,710.14,709.6,5.53715777]
[1736977427794,1.05353126,710.11,709.6,5.53715777]
[1736977428691,1.05353126,710.13,709.6,5.53715777]
[1736977431297,1.05353126,710.12,709.6,5.53715777]
[1736977433395,1.05353126,710.11,709.6,5.53715777]
[1736977434301,1.05353126,710.1,709.6,5.53715777]
[1736977435303,1.05353126,710.09,709.6,5.53715777]
[1736977436402,1.05353126,710.06,709.6,5.53715777]
[1736977437004,1.05353126,710.05,709.6,5.53715777]
[1736977438205,1.05353126,710.04,709.6,5.53715777]
[1736977439302,1.05353126,710.02,709.6,5.53715777]
[1736977441300,1.05353126,710.01,709.6,5.53715777]
[1736977442008,1.05353126,710.0,709.6,5.53715777]
[1736977444707,1.05353126,709.99,709.6,5.53715777]
[1736977445909,1.05353126,709.98,709.6,5.53715777]
[1736977446710,1.05353126,709.97,709.6,5.53715777]
[1736977447708,1.05353126,709.96,709.6,5.53715777]
[1736977448610,1.05353126,709.97,709.6,5.53715777]
[1736977450712,1.05353126,709.98,709.6,5.53715777]
[1736977451515,1.05353126,710.0,709.6,5.53715777]
[1736977454414,1.05353126,710.01,709.6,5.53715777]
[1736977455215,1.05353126,709.99,709.6,5.53715777]
[1736977456315,1.05353126,710.18,709.6,5.53715777]
[1736977456316,1.05353126,710.0,709.6,5.53715777]
[1736977458112,1.05353126,710.01,709.6,5.53715777]
[1736977463219,1.05353126,710.04,709.6,5.53715777]
[1736977464021,1.05353126,710.03,709.6,5.53715777]
[1736977466920,1.05353126,710.04,709.6,5.53715777]
[1736977468025,1.05353126,710.08,709.6,5.53715777]
[1736977469121,1.05353126,710.16,709.6,5.53715777]
[1736977469925,1.05353126,710.17,709.6,5.53715777]
[1736977470928,1.05353126,710.15,709.6,5.53715777]
[1736977473127,1.05353126,710.16,709.6,5.53715777]
[1736977474029,1.05353126,710.15,709.6,5.53715777]
[1736977474731,1.05353126,710.17,709.6,5.53715777]
[1736977477034,1.05353126,710.16,709.6,5.53715777]
[1736977478030,1.05353126,710.08,709.6,5.53715777]
[1736977478629,1.47118403,710.3,709.6,5.53715777]
[1736977478630,1.05353126,710.12,709.6,5.53715777]
[1736977481437,1.05353126,710.13,709.6,5.53715777]
[1736977482535,1.05353126,710.1,709.6,5.53715777]
[1736977483332,1.05353126,710.09,709.6,5.53715777]
[1736977487035,1.47118403,710.3,709.6,5.53715777]
[1736977487036,1.05353126,710.07,709.6,5.53715777]
[1736977488036,1.05353126,710.08,709.6,5.53715777]
[1736977488835,1.05353126,710.02,709.6,5.53715777]
[1736977490741,1.05353126,710.03,709.6,5.53715777]
[1736977491643,1.05353126,710.08,709.6,5.53715777]
[1736977493643,1.05353126,710.12,709.6,5.53715777]
[1736977494744,1.47117366,710.38,709.6,5.53715777]
[1736977494745,1.05353126,710.13,709.6,5.53715777]
[1736977495749,1.05353126,710.16,709.6,5.53715777]
[1736977497043,1.05353126,710.18,709.6,5.53715777]
[1736977497348,1.47117366,710.38,709.6,5.53715777]
[1736977497748,0.25879168,710.37,709.6,5.53715777]
[1736977498148,1.05571007,710.18,709.6,5.53715777]
[1736977499145,1.05571007,710.23,709.6,5.53715777]
[1736977501045,1.05571007,710.22,709.6,5.53715777]
[1736977502946,1.05571007,710.16,709.6,5.53715777]
[1736977504253,1.47115293,710.3,709.6,5.53715777]
[1736977504254,1.05571007,710.14,709.6,5.53715777]
[1736977505249,1.05571007,710.11,709.6,5.53715777]
[1736977506357,1.05571007,710.06,709.6,5.53715777]
[1736977507350,1.05571007,710.08,709.6,5.53715777]
[1736977508457,1.05571007,710.09,709.6,5.53715777]
[1736977509451,1.05571007,710.16,709.6,5.53715777]
[1736977510351,1.05571007,710.17,709.6,5.53715777]
[1736977511556,1.05571007,710.16,709.6,5.53715777]
[1736977512451,1.05571007,710.17,709.6,5.53715777]
[1736977513957,1.05571007,710.23,709.6,5.53715777]
[1736977516461,1.05571007,710.19,709.6,5.53715777]
[1736977518462,2.15540806,710.93,709.6,5.53715777]
[1736977518463,1.05571007,710.18,709.6,5.53715777]
[1736977522356,1.05571007,710.19,709.6,5.53715777]
[1736977523359,1.05571007,710.2,709.6,5.53715777]
[1736977524264,1.05571007,710.13,709.6,5.53715777]
[1736977525362,1.47114257,710.33,709.6,5.53715777]
[1736977525363,1.05571007,710.12,709.6,5.53715777]
[1736977526364,1.47114257,710.33,709.6,5.53715777]
[1736977526365,1.05571007,710.1,709.6,5.53715777]
[1736977527362,1.05571007,710.11,709.6,5.53715777]
[1736977528459,1.05571007,710.1,709.6,5.53715777]
[1736977529267,1.05571007,710.08,709.6,5.53715777]
[1736977531273,1.05571007,710.1,709.6,5.53715777]
[1736977532072,1.05571007,710.09,709.6,5.53715777]